fUST/lending_fUST_20250918
["ID","MTS","AMOUNT","RATE_DAILY","PERIOD"]
[385945457,1758145838536,-480.0,0.00023526,3]
[385945459,1758145838545,-550.17,0.00023526,3]
[385945461,1758145838555,-480.0,0.00023526,3]
[385945463,1758145838564,-480.0,0.00023526,3]
[385945465,1758145838573,-480.0,0.00023526,3]
[385945466,1758145838582,-480.0,0.00023526,3]
[385945468,1758145838591,-480.0,0.00023526,3]
[385945470,1758145838600,-480.0,0.00023527,3]
[385945472,1758145838609,-480.0,0.00023527,3]
[385945474,1758145838621,-480.0,0.00023527,3]
[385945476,1758145838630,-960.22,0.00023527,3]
[385945478,1758145838639,-480.0,0.00023527,3]
[385945480,1758145838649,-480.0,0.00023527,3]
[385945482,1758145838658,-561.42,0.00023527,3]
[385945484,1758145838669,-480.0,0.00023527,3]
[385945485,1758145838678,-283.54,0.00023527,3]
[385945487,1758145838687,-480.0,0.00023527,3]
[385945490,1758145838697,-480.0,0.00023527,3]
[385945491,1758145838707,-160.0,0.00023528,3]
[385945493,1758145838717,-480.0,0.00023528,3]
[385945495,1758145838726,-492.66,0.00023528,3]
[385945497,1758145838736,-1768.55,0.00023528,3]
[385945499,1758145838745,-480.0,0.00023529,3]
[385945501,1758145838754,-3894.83,0.00023529,3]
[385945503,1758145838763,-480.0,0.00023529,3]
[385945505,1758145838772,-480.0,0.00023529,3]
[385945507,1758145838782,-500.0,0.00023529,3]
[385945509,1758145838792,-480.0,0.0002353,3]
[385945511,1758145838801,-775.83,0.0002353,3]
[385945513,1758145838811,-734.42621604,0.00023653,2]
[385945515,1758145838820,-2934.76715931,0.00023653,2]
[385945517,1758145838831,-300.0,0.00023716,20]
[385945519,1758145838840,-300.0,0.00023716,20]
[385945521,1758145838849,-300.0,0.00023718,20]
[385945523,1758145838858,-300.0,0.00023718,20]
[385945525,1758145838867,-359.77061572,0.00023799,2]
[385945526,1758145838877,-500.0,0.00023799,2]
[385945528,1758145838890,-500.0,0.00023799,2]
[385945530,1758145838903,-500.0,0.00023799,2]
[385945532,1758145838911,-500.0,0.00023799,2]
[385945534,1758145838921,-378.3346029,0.00023799,2]
[385945536,1758145838930,-500.0,0.00023799,2]
[385945538,1758145838939,-500.0,0.00023799,2]
[385945540,1758145838948,-500.0,0.00023799,2]
[385945541,1758145838956,-500.0,0.00023799,2]
[385945542,1758145838965,-500.0,0.00023799,2]
[385945543,1758145838974,-500.0,0.00023799,2]
[385945544,1758145838984,-500.0,0.00023799,2]
[385945545,1758145838992,-500.0,0.00023799,2]
[385945546,1758145839001,-500.0,0.00023799,2]
[385945547,1758145839010,-500.0,0.00023799,2]
[385945548,1758145839020,-500.0,0.00023799,2]
[385945549,1758145839029,-500.0,0.00023799,2]
[385945550,1758145839038,-500.0,0.00023799,2]
[385945551,1758145839046,-500.0,0.00023799,2]
[385945552,1758145839055,-418.48089044,0.00023799,2]
[385945553,1758145839064,-500.0,0.00023799,2]
[385945554,1758145839074,-500.0,0.00023799,2]
[385945555,1758145839082,-500.0,0.00023799,2]
[385945556,1758145839091,-500.0,0.00023799,2]
[385945557,1758145839100,-500.0,0.00023799,2]
[385945558,1758145839110,-500.0,0.00023799,2]
[385945559,1758145839119,-500.0,0.00023799,2]
[385945560,1758145839128,-500.0,0.00023799,2]
[385945561,1758145839138,-500.0,0.00023799,2]
[385945562,1758145839148,-500.0,0.00023799,2]
[385945563,1758145839158,-500.0,0.00023799,2]
[385945564,1758145839167,-500.0,0.00023799,2]
[385945565,1758145839176,-500.0,0.00023799,2]
[385945566,1758145839185,-500.0,0.00023799,2]
[385945567,1758145839195,-480.0,0.000238,3]
[385945568,1758145839204,-480.0,0.000238,3]
[385945569,1758145839213,-480.0,0.000238,3]
[385945570,1758145839223,-480.0,0.000238,3]
[385945571,1758145839232,-480.0,0.000238,3]
[385945573,1758145839242,-480.0,0.000238,3]
[385945575,1758145839251,-741.46,0.000238,3]
[385945577,1758145839260,-480.0,0.000238,3]
[385945580,1758145839269,-480.0,0.000238,3]
[385945582,1758145839279,-480.0,0.000238,3]
[385945584,1758145839288,-480.0,0.000238,3]
[385945586,1758145839298,-480.0,0.000238,3]
[385945588,1758145839307,-480.0,0.000238,3]
[385945590,1758145839316,-547.36,0.000238,3]
[385945592,1758145839325,-550.17,0.000238,3]
[385945594,1758145839335,-480.0,0.000238,3]
[385945596,1758145839344,-480.0,0.000238,3]
[385945598,1758145839353,-480.0,0.000238,3]
[385945600,1758145839362,-480.0,0.000238,3]
[385945602,1758145839371,-480.0,0.000238,3]
[385945604,1758145839380,-480.0,0.00023801,3]
[385945606,1758145839389,-960.22,0.00023801,3]
[385945608,1758145839398,-480.0,0.00023801,3]
[385945610,1758145839408,-561.42,0.00023801,3]
[385945612,1758145839417,-480.0,0.00023801,3]
[385945614,1758145839426,-480.0,0.00023801,3]
[385945616,1758145839435,-480.0,0.00023802,3]
[385945618,1758145839444,-492.66,0.00023802,3]
[385945620,1758145839453,-1768.55,0.00023802,3]
[385945622,1758145839463,-480.0,0.00023803,3]
[385945624,1758145839472,-480.0,0.00023803,3]
[385945626,1758145839481,-480.0,0.00023803,3]
[385945627,1758145839490,-500.0,0.00023803,3]
[385945629,1758145839500,-775.83,0.00023804,3]
[385945631,1758145839509,-500.0,0.00023873,2]
[385945633,1758145839518,-500.0,0.00023873,2]
[385945647,1758145839527,-500.0,0.00023873,2]
[385945649,1758145839648,-500.0,0.00023873,2]
[385945651,1758145839658,-2778.28,0.00023873,2]
[385945653,1758145839669,-21499.8117764,0.00023876,2]
[385945655,1758145839679,-1695.22268537,0.00023941,2]
[385945657,1758145839688,-152.32,0.00023966,3]
[385945659,1758145839696,-457.0,0.00023966,3]
[385945661,1758145839707,-500.0,0.00023973,2]
[385945663,1758145839715,-500.0,0.00023973,2]
[385945664,1758145839724,-636.79356159,0.00023973,2]
[385945666,1758145839734,-500.0,0.00023973,2]
[385945668,1758145839743,-500.0,0.00023973,2]
[385945670,1758145839753,-503.28828913,0.00023973,2]
[385945672,1758145839762,-500.0,0.00023973,2]
[385945674,1758145839771,-446.11445871,0.00023973,2]
[385945676,1758145839781,-500.0,0.00023973,2]
[385945678,1758145839790,-500.0,0.00023973,2]
[385945680,1758145839800,-500.0,0.00023973,2]
[385945682,1758145839809,-500.0,0.00023973,2]
[385945684,1758145839818,-500.0,0.00023973,2]
[385945686,1758145839829,-500.0,0.00023973,2]
[385945688,1758145839838,-500.0,0.00023973,2]
[385945690,1758145839847,-500.0,0.00023973,2]
[385945692,1758145839856,-318.61173722,0.00023973,2]
[385945694,1758145839864,-500.0,0.00023973,2]
[385945696,1758145839873,-500.0,0.00023973,2]
[385945698,1758145839882,-500.0,0.00023973,2]
[385945700,1758145839892,-503.3121361,0.00023973,2]
[385945702,1758145839901,-500.22444433,0.00023973,2]
[385945704,1758145839910,-500.0,0.00023973,2]
[385945706,1758145839919,-502.64486148,0.00023973,2]
[385945708,1758145839928,-500.0,0.00023973,2]
[385945710,1758145839937,-500.0,0.00023973,2]
[385945712,1758145839946,-500.0,0.00023973,2]
[385945714,1758145839955,-500.0,0.00023973,2]
[385945716,1758145839964,-264.22847672,0.00023973,2]
[385945718,1758145839973,-500.0,0.00023973,2]
[385945720,1758145839982,-500.0,0.00023973,2]
[385945722,1758145839992,-500.0,0.00023973,2]
[385945724,1758145840001,-500.0,0.00023973,2]
[385945726,1758145840010,-500.0,0.00023973,2]
[385945728,1758145840020,-500.0,0.00023973,2]
[385945730,1758145840029,-156.60958272,0.00023973,2]
[385945732,1758145840038,-457.62265132,0.00023973,2]
[385945734,1758145840047,-500.0,0.00023973,2]
[385945736,1758145840056,-500.0,0.00023973,2]
[385945738,1758145840065,-500.0,0.00023973,2]
[385945740,1758145840074,-505.41736801,0.00023973,2]
[385945742,1758145840083,-500.0,0.00023973,2]
[385945744,1758145840092,-168.64450229,0.00023973,2]
[385945746,1758145840101,-501.85826548,0.00023973,2]
[385945748,1758145840111,-500.0,0.00023973,2]
[385945750,1758145840120,-500.0,0.00023973,2]
[385945751,1758145840129,-500.0,0.00023973,2]
[385945754,1758145840139,-500.0,0.00023973,2]
[385945756,1758145840148,-500.0,0.00023973,2]
[385945758,1758145840158,-225.51142975,0.00023975,2]
[385945759,1758145840167,-500.0,0.00023975,2]
[385945762,1758145840177,-266.78027942,0.00023975,2]
[385945764,1758145840186,-180.21892434,0.00023975,2]
[385945765,1758145840195,-370000.0,0.00023976,2]
[385945768,1758145840204,-3285.157442,0.00023976,2]
[385945770,1758145840214,-100000.0,0.0002399,2]
[385945772,1758145840223,-152.229482,0.0002399,7]
[385945774,1758145840232,-151.0,0.0002399,7]
[385945776,1758145840241,-152.014873,0.0002399,7]
[385945778,1758145840250,-151.0,0.0002399,7]
[385945779,1758145840260,-152.812828,0.0002399,7]
[385945782,1758145840269,-151.0,0.0002399,7]
[385945784,1758145840279,-151.0,0.0002399,7]
[385945786,1758145840288,-151.0,0.0002399,7]
[385945788,1758145840297,-153.07344,0.0002399,7]
[385945789,1758145840306,-10010.30942201,0.00024,2]
[385945791,1758145840315,-160.0,0.00024065,2]
[385945793,1758145840325,-166.02746221,0.00024073,2]
[385945795,1758145840335,-480.0,0.00024074,3]
[385945797,1758145840344,-480.0,0.00024074,3]
[385945799,1758145840354,-741.46,0.00024074,3]
[385945802,1758145840363,-480.0,0.00024074,3]
[385945804,1758145840374,-480.0,0.00024074,3]
[385945806,1758145840383,-480.0,0.00024074,3]
[385945808,1758145840392,-550.17,0.00024074,3]
[385945810,1758145840402,-480.0,0.00024074,3]
[385945812,1758145840412,-480.0,0.00024074,3]
[385945814,1758145840423,-480.0,0.00024075,3]
[385945816,1758145840432,-960.22,0.00024075,3]
[385945818,1758145840441,-480.0,0.00024075,3]
[385945819,1758145840452,-561.42,0.00024075,3]
[385945821,1758145840463,-480.0,0.00024075,3]
[385945823,1758145840472,-480.0,0.00024076,3]
[385945826,1758145840483,-492.66,0.00024076,3]
[385945828,1758145840493,-1768.55,0.00024076,3]
[385945830,1758145840502,-500.0,0.00024077,3]
[385945832,1758145840512,-4064.18,0.00024077,3]
[385945834,1758145840521,-480.0,0.00024077,3]
[385945836,1758145840530,-480.0,0.00024077,3]
[385945838,1758145840539,-775.83,0.00024078,3]
[385945840,1758145840548,-150.0,0.00024109,2]
[385945842,1758145840558,-151.0,0.00024229,2]
[385945844,1758145840566,-151.0,0.00024229,2]
[385945846,1758145840576,-151.0,0.00024229,2]
[385945848,1758145840585,-151.0,0.00024229,2]
[385945850,1758145840594,-151.0,0.00024229,2]
[385945852,1758145840603,-151.0,0.00024229,2]
[385945854,1758145840613,-151.0,0.00024229,2]
[385945855,1758145840625,-151.0,0.00024229,2]
[385945857,1758145840634,-250.0,0.00024229,2]
[385945859,1758145840643,-323.47665042,0.00024229,2]
[385945861,1758145840652,-500.0,0.00024229,2]
[385945863,1758145840662,-151.0,0.00024229,2]
[385945865,1758145840672,-151.0,0.00024229,2]
[385945867,1758145840681,-250.0,0.00024229,2]
[385945869,1758145840691,-500.0,0.00024229,2]
[385945871,1758145840700,-151.0,0.00024229,2]
[385945873,1758145840710,-151.0,0.00024229,2]
[385945875,1758145840721,-151.0,0.00024229,2]
[385945877,1758145840730,-500.0,0.00024229,2]
[385945879,1758145840740,-151.0,0.00024229,2]
[385945881,1758145840749,-250.0,0.00024229,2]
[385945883,1758145840758,-500.0,0.00024229,2]
[385945885,1758145840767,-151.0,0.00024229,2]
[385945887,1758145840776,-151.0,0.00024229,2]
[385945889,1758145840786,-250.0,0.00024229,2]
[385945891,1758145840795,-500.0,0.00024229,2]
[385945893,1758145840804,-151.0,0.00024229,2]
[385945895,1758145840813,-250.0,0.00024229,2]
[385945897,1758145840823,-500.0,0.00024229,2]
[385945899,1758145840832,-250.0,0.00024229,2]
[385945901,1758145840842,-500.0,0.00024229,2]
[385945903,1758145840851,-250.0,0.00024229,2]
[385945905,1758145840860,-500.0,0.00024229,2]
[385945907,1758145840869,-250.0,0.00024229,2]
[385945909,1758145840878,-500.0,0.00024229,2]
[385945911,1758145840888,-250.0,0.00024229,2]
[385945913,1758145840896,-500.0,0.00024229,2]
[385945915,1758145840905,-250.0,0.00024229,2]
[385945917,1758145840914,-500.0,0.00024229,2]
[385945919,1758145840923,-250.0,0.00024229,2]
[385945921,1758145840932,-500.0,0.00024229,2]
[385945923,1758145840941,-250.0,0.00024229,2]
[385945925,1758145840950,-201.93286099,0.00024229,2]
[385945927,1758145840959,-1000.0,0.00024229,2]
[385945929,1758145840968,-1000.0,0.00024229,2]
[385945931,1758145840977,-1000.0,0.00024229,2]
[385945933,1758145840987,-1000.0,0.00024229,2]
[385945935,1758145840996,-500.0,0.00024273,2]
[385945937,1758145841005,-480.0,0.00024348,3]
[385945939,1758145841014,-741.46,0.00024348,3]
[385945940,1758145841024,-480.0,0.00024348,3]
[385945942,1758145841033,-480.0,0.00024348,3]
[385945944,1758145841042,-480.0,0.00024348,3]
[385945946,1758145841052,-550.17,0.00024348,3]
[385945948,1758145841061,-480.0,0.00024348,3]
[385945950,1758145841070,-480.0,0.00024348,3]
[385945952,1758145841079,-480.0,0.00024349,3]
[385945954,1758145841088,-960.22,0.00024349,3]
[385945956,1758145841097,-480.0,0.00024349,3]
[385945958,1758145841107,-561.42,0.00024349,3]
[385945960,1758145841116,-480.0,0.00024349,3]
[385945962,1758145841126,-480.0,0.0002435,3]
[385945964,1758145841135,-492.66,0.0002435,3]
[385945966,1758145841144,-1768.55,0.0002435,3]
[385945968,1758145841154,-500.0,0.00024351,3]
[385945970,1758145841163,-4064.18,0.00024351,3]
[385945972,1758145841173,-480.0,0.00024351,3]
[385945974,1758145841182,-480.0,0.00024351,3]
[385945976,1758145841191,-775.83,0.00024352,3]
[385945978,1758145841201,-160.0,0.00024364,2]
[385945980,1758145841211,-160.0,0.00024364,2]
[385945982,1758145841220,-233.34517135,0.00024372,2]
[385945984,1758145841229,-160.0,0.00024372,2]
[385945986,1758145841239,-1000.0,0.00024421,2]
[385945988,1758145841248,-1000.0,0.00024421,2]
[385945990,1758145841258,-316.29247482,0.00024421,2]
[385945992,1758145841267,-1091.91021358,0.00024421,2]
[385945994,1758145841277,-1000.0,0.00024521,2]
[385945996,1758145841286,-1000.0,0.00024521,2]
[385945998,1758145841295,-1004.06962117,0.00024521,2]
[385946000,1758145841304,-1000.0,0.00024521,2]
[385946002,1758145841314,-1000.0,0.00024521,2]
[385946004,1758145841323,-1000.0,0.00024521,2]
[385946006,1758145841332,-1000.0,0.00024521,2]
[385946008,1758145841341,-1000.0,0.00024521,2]
[385946010,1758145841351,-1000.82587803,0.00024521,2]
[385946012,1758145841360,-1001.64190611,0.00024521,2]
[385946014,1758145841369,-1000.0,0.00024521,2]
[385946016,1758145841378,-485.28979881,0.00024521,2]
[385946018,1758145841387,-1000.0,0.00024521,2]
[385946020,1758145841397,-503.15188756,0.00024521,2]
[385946022,1758145841406,-1000.0,0.00024521,2]
[385946024,1758145841415,-1004.10830129,0.00024521,2]
[385946026,1758145841424,-1000.0,0.00024521,2]
[385946028,1758145841433,-505.47288059,0.00024521,2]
[385946030,1758145841442,-1000.0,0.00024521,2]
[385946032,1758145841451,-191.46324688,0.00024521,2]
[385946034,1758145841460,-1000.0,0.00024521,2]
[385946036,1758145841470,-1000.0,0.00024521,2]
[385946038,1758145841479,-1000.0,0.00024521,2]
[385946040,1758145841489,-1000.0,0.00024521,2]
[385946042,1758145841498,-1000.0,0.00024521,2]
[385946044,1758145841507,-268.76506992,0.00024521,2]
[385946046,1758145841516,-1000.0,0.00024521,2]
[385946048,1758145841525,-775.4374358,0.00024521,2]
[385946050,1758145841534,-1000.0,0.00024521,2]
[385946052,1758145841544,-1000.0,0.00024521,2]
[385946054,1758145841553,-500.0,0.00024573,2]
[385946056,1758145841562,-21499.81177639,0.00024599,2]
[385946058,1758145841571,-151.0,0.00024599,7]
[385946060,1758145841580,-151.0,0.000246,5]
[385946062,1758145841589,-151.0,0.000246,10]
[385946064,1758145841598,-260.0,0.00024613,2]
[385946066,1758145841607,-1324.52,0.00024622,2]
[385946068,1758145841620,-1324.52,0.00024622,2]
[385946070,1758145841629,-1324.52,0.00024622,2]
[385946072,1758145841638,-1324.52,0.00024622,2]
[385946074,1758145841648,-1324.52,0.00024622,2]
[385946076,1758145841659,-480.0,0.00024622,3]
[385946077,1758145841668,-741.46,0.00024622,3]
[385946079,1758145841677,-480.0,0.00024622,3]
[385946081,1758145841687,-480.0,0.00024622,3]
[385946083,1758145841698,-480.0,0.00024622,3]
[385946085,1758145841707,-550.17,0.00024622,3]
[385946088,1758145841716,-480.0,0.00024622,3]
[385946090,1758145841726,-480.0,0.00024622,3]
[385946092,1758145841735,-480.0,0.00024623,3]
[385946094,1758145841744,-960.22,0.00024623,3]
[385946095,1758145841753,-480.0,0.00024623,3]
[385946097,1758145841763,-561.42,0.00024623,3]
[385946100,1758145841772,-480.0,0.00024623,3]
[385946102,1758145841782,-480.0,0.00024624,3]
[385946104,1758145841792,-492.66,0.00024624,3]
[385946106,1758145841801,-151.0,0.00024624,7]
[385946108,1758145841810,-1768.55,0.00024624,3]
[385946110,1758145841819,-500.0,0.00024625,3]
[385946112,1758145841828,-480.0,0.00024625,3]
[385946114,1758145841838,-775.83,0.00024626,3]
[385946116,1758145841847,-800.0,0.00024633,2]
[385946118,1758145841856,-151.0,0.00024658,2]
[385946120,1758145841865,-500.0,0.00024658,2]
[385946122,1758145841875,-157.0,0.00024658,2]
[385946124,1758145841883,-151.0,0.00024658,2]
[385946126,1758145841892,-151.0,0.00024658,2]
[385946128,1758145841902,-151.0,0.00024658,2]
[385946130,1758145841911,-151.0,0.00024658,2]
[385946131,1758145841920,-151.0,0.00024658,2]
[385946133,1758145841929,-151.0,0.00024658,2]
[385946135,1758145841939,-151.0,0.00024658,2]
[385946136,1758145841948,-151.0,0.00024658,2]
[385946138,1758145841956,-151.0,0.00024658,2]
[385946140,1758145841965,-151.0,0.00024658,2]
[385946142,1758145841974,-500.0,0.00024658,2]
[385946144,1758145841984,-151.0,0.00024658,2]
[385946145,1758145841993,-500.0,0.00024658,2]
[385946147,1758145842003,-151.0,0.00024658,2]
[385946156,1758145842097,-500.0,0.00024658,2]
[385946158,1758145842107,-151.0,0.00024658,2]
[385946160,1758145842116,-225.93645377,0.00024658,2]
[385946162,1758145842126,-151.0,0.00024658,2]
[385946163,1758145842135,-151.0,0.00024658,2]
[385946165,1758145842145,-151.0,0.00024658,2]
[385946167,1758145842155,-500.0,0.00024658,2]
[385946169,1758145842164,-253.95294012,0.00024658,2]
[385946171,1758145842174,-151.0,0.00024658,2]
[385946172,1758145842183,-500.0,0.00024658,2]
[385946174,1758145842193,-151.0,0.00024658,2]
[385946176,1758145842203,-151.0,0.00024658,2]
[385946178,1758145842212,-151.0,0.000247,6]
[385946180,1758145842222,-8488.902888,0.00024721,2]
[385946181,1758145842231,-99396.8616154,0.00024721,2]
[385946183,1758145842241,-1000.0,0.00024721,2]
[385946185,1758145842251,-1000.0,0.00024721,2]
[385946187,1758145842260,-1000.0,0.00024721,2]
[385946188,1758145842270,-1000.0,0.00024721,2]
[385946190,1758145842279,-1000.0,0.00024721,2]
[385946192,1758145842288,-1000.0,0.00024721,2]
[385946194,1758145842297,-1000.0,0.00024721,2]
[385946196,1758145842306,-1000.0,0.00024721,2]
[385946198,1758145842315,-1000.0,0.00024721,2]
[385946200,1758145842325,-1000.0,0.00024721,2]
[385946202,1758145842334,-1000.0,0.00024721,2]
[385946203,1758145842344,-1000.0,0.00024721,2]
[385946205,1758145842353,-1000.0,0.00024721,2]
[385946208,1758145842363,-1000.0,0.00024721,2]
[385946210,1758145842372,-1000.0,0.00024721,2]
[385946212,1758145842381,-1000.0,0.00024721,2]
[385946213,1758145842390,-1000.0,0.00024721,2]
[385946215,1758145842399,-1000.0,0.00024721,2]
[385946217,1758145842409,-1000.0,0.00024721,2]
[385946219,1758145842418,-1000.0,0.00024721,2]
[385946221,1758145842427,-1000.0,0.00024721,2]
[385946222,1758145842437,-1000.0,0.00024721,2]
[385946224,1758145842446,-1000.0,0.00024721,2]
[385946226,1758145842456,-1000.0,0.00024721,2]
[385946228,1758145842466,-1000.0,0.00024721,2]
[385946230,1758145842478,-1000.0,0.00024721,2]
[385946232,1758145842488,-1000.0,0.00024721,2]
[385946234,1758145842497,-1000.0,0.00024721,2]
[385946236,1758145842506,-1000.0,0.00024721,2]
[385946237,1758145842516,-1000.0,0.00024721,2]
[385946239,1758145842525,-359.464904,0.00024721,2]
[385946241,1758145842534,-1406.02363963,0.00024777,2]
[385946243,1758145842543,-800.0,0.00024778,2]
[385946245,1758145842552,-1324.52,0.00024799,2]
[385946248,1758145842562,-174.59529716,0.00024799,2]
[385946250,1758145842571,-13703.78352026,0.000248,2]
[385946252,1758145842580,-6512.9791146,0.000248,2]
[385946254,1758145842589,-502.77240603,0.00024821,2]
[385946256,1758145842599,-10546.64649261,0.00024832,3]
[385946258,1758145842607,-500.0,0.00024873,2]
[385946260,1758145842619,-500.0,0.00024873,2]
[385946262,1758145842629,-500.0,0.00024873,2]
[385946263,1758145842638,-500.0,0.00024873,2]
[385946265,1758145842647,-500.0,0.00024873,2]
[385946267,1758145842656,-500.0,0.00024873,2]
[385946269,1758145842666,-500.0,0.00024873,2]
[385946271,1758145842675,-500.0,0.00024873,2]
[385946272,1758145842684,-500.0,0.00024873,2]
[385946274,1758145842695,-500.0,0.00024873,2]
[385946276,1758145842704,-500.0,0.00024873,2]
[385946278,1758145842714,-160.25066736,0.00024873,2]
[385946280,1758145842723,-500.0,0.00024873,2]
[385946282,1758145842732,-500.0,0.00024873,2]
[385946283,1758145842742,-500.0,0.00024873,2]
[385946285,1758145842751,-500.0,0.00024873,2]
[385946287,1758145842761,-160.27045293,0.00024873,2]
[385946289,1758145842771,-158.29914801,0.00024873,2]
[385946291,1758145842781,-500.0,0.00024873,2]
[385946292,1758145842790,-160.21086092,0.00024873,2]
[385946294,1758145842799,-158.25506541,0.00024873,2]
[385946296,1758145842809,-500.0,0.00024873,2]
[385946298,1758145842818,-160.25124104,0.00024873,2]
[385946300,1758145842828,-500.0,0.00024873,2]
[385946301,1758145842837,-500.0,0.00024873,2]
[385946303,1758145842847,-500.0,0.00024873,2]
[385946305,1758145842856,-500.0,0.00024873,2]
[385946307,1758145842865,-448.06683319,0.00024873,2]
[385946309,1758145842874,-500.0,0.00024873,2]
[385946311,1758145842883,-170.15210062,0.00024873,2]
[385946312,1758145842892,-500.0,0.00024873,2]
[385946314,1758145842902,-500.0,0.00024873,2]
[385946316,1758145842912,-500.0,0.00024873,2]
[385946318,1758145842922,-500.0,0.00024873,2]
[385946320,1758145842931,-163.33239925,0.00024873,2]
[385946322,1758145842941,-500.0,0.00024873,2]
[385946324,1758145842950,-500.0,0.00024873,2]
[385946326,1758145842960,-500.0,0.00024873,2]
[385946328,1758145842970,-500.0,0.00024873,2]
[385946329,1758145842979,-502.34050976,0.00024873,2]
[385946331,1758145842990,-501.61123754,0.00024873,2]
[385946333,1758145842999,-500.0,0.00024873,2]
[385946335,1758145843008,-500.0,0.00024873,2]
[385946337,1758145843018,-500.0,0.00024873,2]
[385946339,1758145843028,-500.0,0.00024873,2]
[385946341,1758145843037,-524.86552585,0.00024873,2]
[385946342,1758145843046,-500.0,0.00024873,2]
[385946344,1758145843056,-528.50494501,0.00024873,2]
[385946346,1758145843065,-625.47117252,0.00024873,2]
[385946348,1758145843075,-500.0,0.00024873,2]
[385946350,1758145843084,-1324.52,0.00024889,2]
[385946352,1758145843095,-1324.52,0.00024889,2]
[385946354,1758145843104,-480.0,0.00024896,3]
[385946355,1758145843114,-741.46,0.00024896,3]
[385946357,1758145843124,-480.0,0.00024896,3]
[385946359,1758145843133,-480.0,0.00024896,3]
[385946361,1758145843144,-480.0,0.00024896,3]
[385946363,1758145843154,-550.17,0.00024896,3]
[385946365,1758145843165,-480.0,0.00024896,3]
[385946367,1758145843175,-480.0,0.00024896,3]
[385946369,1758145843185,-480.0,0.00024897,3]
[385946371,1758145843195,-960.22,0.00024897,3]
[385946373,1758145843204,-480.0,0.00024897,3]
[385946375,1758145843213,-561.42,0.00024897,3]
[385946376,1758145843223,-480.0,0.00024897,3]
[385946378,1758145843232,-480.0,0.00024898,3]
[385946380,1758145843241,-492.66,0.00024898,3]
[385946382,1758145843250,-1768.55,0.00024898,3]
[385946384,1758145843260,-500.0,0.00024899,3]
[385946386,1758145843270,-155.0,0.00024899,2]
[385946388,1758145843279,-303.76515095,0.00024899,2]
[385946390,1758145843288,-1324.52,0.00024899,2]
[385946391,1758145843297,-1324.52,0.00024899,2]
[385946393,1758145843306,-1324.52,0.00024899,2]
[385946395,1758145843315,-1324.52,0.00024899,2]
[385946397,1758145843324,-480.0,0.00024899,3]
[385946399,1758145843333,-560.14761755,0.00024899,2]
[385946401,1758145843342,-2240.59047019,0.00024899,2]
[385946402,1758145843351,-761.53775078,0.00024899,2]
[385946404,1758145843360,-825354.280167,0.000249,2]
[385946406,1758145843370,-775.83,0.000249,3]
[385946408,1758145843379,-151.0,0.000249,2]
[385946410,1758145843388,-151.0,0.000249,2]
[385946412,1758145843398,-151.0,0.000249,2]
[385946414,1758145843406,-166.11606899,0.000249,2]
[385946415,1758145843416,-163.75081278,0.00024932,2]